bitfinex-derivatives/quotes_ETHF0:USTF0_20250317
["timestamp","ask_amount","ask_price","bid_price","bid_amount"]
[1742191346392,1.33610014,1896.6,1896.5,43.21265]
[1742191346592,1.33610014,1896.6,1896.5,43.87095]
[1742191353996,1.33610014,1896.6,1896.5,44.58795]
[1742191358098,0.00790014,1896.6,1896.5,44.58795]
[1742191358291,2.52187,1896.8,1896.5,43.5333]
[1742191358491,2.52187,1896.8,1896.7,4.26234]
[1742191358996,3.91947,1896.8,1896.7,4.26234]
[1742191359201,2.52187,1896.8,1896.7,45.06234]
[1742191363800,26.77865065,1896.9,1896.8,1.05449]
[1742191364001,26.77865065,1896.9,1896.8,3.84569]
[1742191364393,0.00790014,1896.9,1896.8,44.64569]
[1742191365709,32.4548,1897.6,1897.4,1.05415]
[1742191365710,2.41454686,1897.5,1897.4,1.05415]
[1742191366002,7.25274686,1897.5,1897.4,1.05415]
[1742191366404,2.8334,1897.5,1897.4,1.05415]
[1742191366705,4.8372,1897.5,1897.4,1.05415]
[1742191367004,4.8372,1897.5,1897.4,41.85415]
[1742191369202,4.8372,1897.5,1897.4,43.19885]
[1742191372817,4.8372,1897.5,1897.4,41.85415]
[1742191373013,4.8372,1897.5,1897.4,40.8]
[1742191373212,5.8913,1897.5,1897.4,40.8]
[1742191373513,6.91267322,1897.5,1897.4,40.8]
[1742191373813,5.85857322,1897.5,1897.4,40.8]
[1742191374208,4.8372,1897.5,1897.4,41.85415]
[1742191375316,4.8372,1897.5,1897.4,43.17615]
[1742191377008,4.8372,1897.5,1897.4,43.85315]
[1742191377823,1.4422,1897.5,1897.4,41.85415]
[1742191378013,4.8312,1897.5,1897.4,43.20415]
[1742191379920,4.8312,1897.5,1897.4,41.85415]
[1742191382017,4.8312,1897.5,1897.4,43.28065]
[1742191383219,4.8312,1897.5,1897.4,41.85415]
[1742191384617,4.8312,1897.5,1897.4,43.19325]
[1742191388217,1.4422,1897.5,1897.4,43.19325]
[1742191388414,3.379,1897.5,1897.4,43.19325]
[1742191388609,29.25490014,1897.6,1897.5,1.0541]
[1742191388815,32.63590014,1897.6,1897.5,3.8135]
[1742191389323,29.25490014,1897.6,1897.5,3.8135]
[1742191389820,29.25490014,1897.6,1897.5,7.0213]
[1742191390020,32.63890014,1897.6,1897.5,7.0213]
[1742191392826,29.25490014,1897.6,1897.5,7.0213]
[1742191394026,9.0778,1898.5,1897.6,2.63497]
[1742191394227,3.39,1898.4,1898.2,1.05366]
[1742191394429,6.1749,1898.4,1898.2,1.05366]
[1742191394626,1.441,1898.3,1898.2,1.05366]
[1742191394822,1.441,1898.3,1898.2,1.72686]
[1742191395018,1.441,1898.3,1898.2,42.52686]
[1742191395617,1.441,1898.3,1898.2,41.85366]
[1742191395922,1.441,1898.3,1898.2,40.8]
[1742191396123,5.70245,1898.3,1898.2,40.8]
[1742191396319,7.57231351,1898.3,1898.1,0.00790014]
[1742191396516,3.44318956,1898.2,1898.1,0.00790014]
[1742191396715,2.42041,1898.2,1898.1,0.00790014]
[1742191396930,4.33954038,1898.2,1898.1,0.00790014]
[1742191397131,5.36231994,1898.2,1898.1,0.00790014]
[1742191398321,3.44318956,1898.2,1898.1,0.00790014]
[1742191402334,5.94318956,1898.2,1898.1,0.00790014]
[1742191402540,1.05376,1898.1,1898.0,40.8]
[1742191402738,10.36116,1898.1,1898.0,40.8]
[1742191403037,14.73035686,1898.1,1898.0,40.8]
[1742191403942,13.88393956,1898.1,1898.0,40.8]
[1742191404432,11.38393956,1898.1,1898.0,40.8]
[1742191405640,40.61393956,1898.1,1898.0,40.8]
[1742191406040,39.56017956,1898.1,1898.0,40.8]
[1742191406340,37.40613956,1898.1,1898.0,40.8]
[1742191406535,35.68787956,1898.1,1898.0,41.85382]
[1742191406741,35.02557956,1898.1,1898.0,43.28152]
[1742191408345,31.63557956,1898.1,1898.0,43.28152]
[1742191408542,33.9998,1898.1,1898.0,43.28152]
[1742191409446,32.62,1898.1,1898.0,43.28152]
[1742191410048,1.43530014,1898.4,1898.3,1.05365]
[1742191410238,4.82630014,1898.4,1898.2,1.05368]
[1742191410437,4.82630014,1898.4,1898.3,2.40665]
[1742191412541,3.39690014,1898.4,1898.3,2.40665]
[1742191412844,0.00790014,1898.4,1898.3,2.40665]
[1742191413046,3.39690014,1898.4,1898.3,2.40665]
[1742191413243,3.39690014,1898.4,1898.3,3.82325]
[1742191414144,3.39590014,1898.4,1898.3,3.82325]
[1742191417747,1.02217346,1898.6,1898.5,1.05354]
[1742191417941,4.7929,1898.6,1898.5,1.05354]
[1742191418243,4.7939,1898.6,1898.5,1.05354]
[1742191418450,4.7939,1898.6,1898.5,2.48474]
[1742191418845,4.7939,1898.6,1898.5,1.4312]
[1742191419446,4.7939,1898.6,1898.5,2.48474]
[1742191420049,4.7939,1898.6,1898.5,1.4312]
[1742191420739,4.7939,1898.6,1898.5,2.48474]
[1742191422852,29.23790014,1898.7,1898.6,1.05349]
[1742191423148,32.62490014,1898.7,1898.6,3.89659]
[1742191427750,33.67833014,1898.7,1898.6,2.1473]
[1742191427951,35.39111917,1898.7,1898.5,1.05351]
[1742191428146,1.3414,1898.6,1898.5,1.05351]
[1742191430040,1.3414,1898.6,1898.5,2.39041]
[1742191430440,32.62490014,1898.7,1898.6,1.05349]
[1742191430643,32.62490014,1898.7,1898.6,3.77369]
[1742191431046,32.62690014,1898.7,1898.6,3.77369]
[1742191432647,29.23790014,1898.7,1898.6,3.77369]
[1742191432949,32.62590014,1898.7,1898.6,3.77369]
[1742191433645,29.23790014,1898.7,1898.6,3.77369]
[1742191433852,29.23790014,1898.7,1898.6,6.98149]
[1742191434347,0.00790014,1898.7,1898.6,47.78149]
[1742191434653,1.02192395,1899.2,1899.1,1.05321]
[1742191434950,5.85812395,1899.2,1899.1,1.05321]
[1742191435244,4.8362,1899.2,1899.1,1.05321]
[1742191436043,4.8362,1899.2,1899.1,3.17961]
[1742191437748,4.8362,1899.2,1899.1,3.86141]
[1742191437948,4.8342,1899.2,1899.1,3.86141]
[1742191439144,32.61426678,1899.3,1899.2,1.05315]
[1742191439345,32.61426678,1899.3,1899.2,2.40925]
[1742191440052,32.61426678,1899.3,1899.2,43.20925]
[1742191440446,29.22426678,1899.3,1899.2,43.20925]
[1742191440854,30.65236678,1899.3,1899.2,43.20925]
[1742191445455,34.03736678,1899.3,1899.2,43.20925]
[1742191445756,34.03736678,1899.3,1899.2,46.41705]
[1742191446352,34.03736678,1899.3,1899.2,43.20925]
[1742191446750,34.03736678,1899.3,1899.2,46.41705]
[1742191446959,34.03736678,1899.3,1899.2,45.3639]
[1742191447253,34.03736678,1899.3,1899.2,40.8]
[1742191448753,34.03736678,1899.3,1899.2,41.85315]
[1742191450057,34.03736678,1899.3,1899.2,40.8]
[1742191450559,34.03736678,1899.3,1899.2,41.85315]
[1742191451856,34.03736678,1899.3,1899.2,43.20975]
[1742191452653,34.03736678,1899.3,1899.2,40.8]
[1742191452860,35.09046678,1899.3,1899.2,40.8]
[1742191453850,36.11201513,1899.3,1899.2,40.8]
[1742191454253,35.09046678,1899.3,1899.2,40.8]
[1742191454661,35.09046678,1899.3,1899.2,42.2285]
[1742191454861,34.03736678,1899.3,1899.2,42.2285]
[1742191455264,35.09046678,1899.3,1899.2,40.8]
[1742191455565,36.11233779,1899.3,1899.2,40.8]
[1742191458269,31.67423779,1899.3,1899.2,40.8]
[1742191458468,34.03536678,1899.3,1899.2,42.1955]
[1742191458762,34.03536678,1899.3,1899.2,43.24865]
[1742191459964,35.05820732,1899.3,1899.2,44.60365]
[1742191460264,34.03536678,1899.3,1899.2,44.60365]
[1742191460666,35.05853102,1899.3,1899.2,43.5505]
[1742191461163,35.05853102,1899.3,1899.2,42.8356]
[1742191461557,35.05853102,1899.3,1899.2,43.88875]
[1742191461964,30.65236678,1899.3,1899.2,43.88875]
[1742191462262,35.05640153,1899.3,1899.2,43.88875]
[1742191462565,35.05840153,1899.3,1899.2,43.88875]
[1742191463055,35.05740153,1899.3,1899.2,43.88875]
[1742191464265,34.03336678,1899.3,1899.2,43.88875]
[1742191464466,32.60526678,1899.3,1899.2,43.88875]
[1742191464965,0.00526678,1899.3,1899.2,43.88875]
[1742191476465,0.00526678,1899.3,1899.2,42.8356]
[1742191476874,1.32406678,1899.3,1899.2,41.4806]
[1742191477369,1.32406678,1899.3,1899.2,42.8241]
[1742191477566,1.32406678,1899.3,1899.2,43.87725]
[1742191479173,0.00526678,1899.3,1899.2,43.87725]
[1742191480068,1.46426678,1899.3,1899.2,43.87725]
[1742191482266,1.46426678,1899.3,1899.2,40.8]
[1742191482573,2.85576678,1899.3,1899.2,40.8]
[1742191482970,3.88057624,1899.3,1899.2,40.8]
[1742191484777,5.78165503,1899.3,1899.2,40.8]
[1742191485169,4.72855503,1899.3,1899.2,40.8]
[1742191485376,4.95407868,1899.3,1899.2,40.8]
[1742191485977,5.78162757,1899.3,1899.2,40.8]
[1742191487781,6.8552299,1899.3,1899.2,40.8]
[1742191488180,15.2252299,1899.3,1899.2,40.8]
[1742191491076,14.1721299,1899.3,1898.6,2.116]
[1742191491277,3.2078,1898.9,1898.6,2.116]
[1742191491480,1.05343,1898.7,1898.6,2.116]
[1742191491984,1.3997,1898.7,1898.5,4.26133]
[1742191492183,1.3997,1898.7,1898.6,40.8]
[1742191492476,2.45313,1898.7,1898.6,40.8]
[1742191492881,1.3997,1898.7,1898.6,40.8]
[1742191493477,1.3997,1898.7,1898.6,42.1548]
[1742191494184,1.3997,1898.7,1898.6,43.20829]
[1742191495084,3.376,1898.8,1898.7,1.05343]
[1742191495284,4.7771,1898.8,1898.7,3.81503]
[1742191495484,1.4011,1898.8,1898.7,3.81503]
[1742191495685,4.7871,1898.8,1898.7,3.81503]
[1742191495889,4.7871,1898.8,1898.7,2.7616]
[1742191496380,4.7871,1898.8,1898.7,3.81503]
[1742191497383,4.7871,1898.8,1898.7,2.7616]
[1742191497583,3.386,1898.8,1898.7,3.81503]
[1742191497784,4.8463,1898.8,1898.7,3.81503]
[1742191497981,3.2078,1899.1,1898.8,1.05335]
[1742191498287,4.8443,1899.0,1898.8,2.50875]
[1742191498489,3.384,1899.0,1898.9,1.4554]
[1742191500184,4.43727,1899.0,1898.9,1.4554]
[1742191500383,1.05333,1898.9,1898.7,1.4068]
[1742191500591,1.05333,1898.9,1898.7,2.7269]
[1742191500886,3.2078,1898.9,1898.7,3.78033]
[1742191501085,3.2078,1898.9,1898.8,1.3201]
[1742191502091,3.2078,1898.9,1898.8,2.37348]
[1742191502388,3.384,1899.0,1898.8,2.37345]
[1742191502589,3.384,1899.0,1898.9,1.3449]
[1742191503292,4.40426971,1899.0,1898.9,1.3449]
[1742191503590,3.384,1899.0,1898.9,1.3449]
[1742191503888,4.43727,1899.0,1898.7,2.4602]
[1742191504092,5.10727,1899.0,1898.8,1.3449]
[1742191505290,5.10727,1899.0,1898.8,2.39826]
[1742191505490,5.10727,1899.0,1898.9,1.4178]
[1742191505991,5.10727,1899.0,1898.7,2.46019]
[1742191506196,4.054,1899.0,1898.9,1.4178]
[1742191506392,3.384,1899.0,1898.9,1.4178]
[1742191506588,4.43727,1899.0,1898.9,1.4178]
[1742191508088,5.45811659,1899.0,1898.9,1.4178]
[1742191512897,6.86821659,1899.0,1898.9,1.4178]
[1742191513295,6.66177546,1899.0,1898.7,1.4068]
[1742191513500,1.4101,1898.9,1898.8,1.05338]
[1742191513799,1.02084659,1899.0,1898.9,1.05332]
[1742191514096,3.378,1899.0,1898.9,1.05332]
[1742191514300,4.39884659,1899.0,1898.9,1.05332]
[1742191514503,5.75184659,1899.0,1898.9,1.05332]
[1742191515999,5.75184659,1899.0,1898.8,1.3398]
[1742191516294,6.5991395,1899.0,1898.9,1.05332]
[1742191516496,4.39884659,1899.0,1898.9,1.05332]
[1742191516700,4.39784659,1899.0,1898.9,1.05332]
[1742191517003,4.39984659,1899.0,1898.9,1.05332]
[1742191517303,3.379,1899.0,1898.9,1.05332]
[1742191517691,1.02084659,1899.1,1899.0,1.05327]
[1742191517894,29.214,1899.2,1899.0,3.81493]
[1742191518096,4.4010388,1899.1,1899.0,3.81493]
[1742191518404,4.4010388,1899.1,1899.0,2.45953]
[1742191519005,2.4188388,1899.1,1899.0,2.45953]
[1742191519207,5.7958388,1899.1,1899.0,2.45953]
[1742191519505,3.377,1899.1,1899.0,2.45953]
[1742191519903,2.63202,1899.9,1899.0,2.45953]
[1742191519904,6.29842899,1900.2,1899.0,9.9063]
[1742191520094,1.05279,1899.9,1899.5,3.2078]
[1742191520298,3.2078,1899.7,1899.6,0.7218]
[1742191520499,3.2078,1899.7,1899.6,41.5218]
[1742191520500,4.22951761,1899.7,1899.6,41.5218]
[1742191520695,5.60161472,1899.7,1899.6,41.5218]
[1742191521307,4.5799,1899.7,1899.6,41.5218]
[1742191521708,8.0189,1899.7,1899.6,41.5218]
[1742191521909,8.0189,1899.7,1899.6,42.57473]
[1742191523009,8.0189,1899.7,1899.6,40.8]
[1742191523196,8.7336,1899.7,1899.6,40.8]
[1742191524011,8.7336,1899.7,1899.6,41.85293]
[1742191525612,8.7336,1899.7,1899.6,40.8]
[1742191525809,9.78648,1899.7,1899.6,40.8]
[1742191526009,1.05293,1899.6,1899.5,0.00790014]
[1742191526211,2.46393,1899.6,1899.5,0.00790014]
[1742191526910,8.33393,1899.6,1899.5,0.00790014]
[1742191527519,9.35338474,1899.6,1899.5,0.00790014]
[1742191528917,7.281,1899.6,1899.5,0.00790014]
[1742191529415,7.281,1899.6,1899.5,1.77519014]
[1742191529814,7.281,1899.6,1899.5,0.72220014]
[1742191530515,7.281,1899.6,1899.5,1.38210014]
[1742191530817,7.281,1899.6,1899.5,2.43509014]
[1742191531517,7.281,1899.6,1899.5,43.23509014]
[1742191532722,1.411,1899.6,1899.5,43.23509014]
[1742191535323,3.2078,1899.7,1899.6,1.05293]
[1742191535515,7.993,1899.7,1899.6,1.05293]
[1742191535810,7.993,1899.7,1899.6,2.42433]
[1742191536210,6.6348,1899.7,1899.6,2.42433]
[1742191536515,29.21690014,1899.8,1899.7,1.05288]
[1742191536716,32.64490014,1899.8,1899.7,2.42428]
[1742191537817,34.00310014,1899.8,1899.7,2.42428]
[1742191539925,30.57510014,1899.8,1899.7,2.42428]
[1742191540224,34.00010014,1899.8,1899.7,2.42428]
[1742191540422,30.57510014,1899.8,1899.7,2.42428]
[1742191540726,32.64190014,1899.8,1899.7,2.42428]
[1742191542116,29.21690014,1899.8,1899.7,2.42428]
[1742191542316,32.63990014,1899.8,1899.7,2.42428]
[1742191542628,32.63890014,1899.8,1899.7,2.42428]
[1742191542818,29.21690014,1899.8,1899.7,2.42428]
[1742191543020,29.21690014,1899.8,1899.7,5.63208]
[1742191544828,29.21690014,1899.8,1899.7,8.13208]
[1742191546328,5.87,1900.2,1900.1,1.05266]
[1742191546528,4.8538,1900.2,1899.8,5.34164]
[1742191546731,4.8538,1900.2,1900.1,1.05266]
[1742191547632,3.42,1900.2,1900.1,1.05266]
[1742191548226,4.7715,1900.2,1900.0,1.05266]
[1742191548429,1.3515,1900.1,1900.0,1.05271]
[1742191552929,4.7705,1900.1,1900.0,1.05271]
[1742191557139,4.7705,1900.1,1899.9,1.05274]
[1742191557345,1.444,1900.0,1899.9,1.05274]
[1742191559747,2.8741,1900.0,1899.9,1.05274]
[1742191560147,2.8741,1900.0,1899.8,1.3365]
[1742191560348,1.3185,1899.9,1899.8,1.71458]
[1742191560550,1.3185,1899.9,1899.8,1.05278]
[1742191561954,1.3185,1899.9,1899.7,4.26065]
[1742191562147,3.412,1899.8,1899.7,4.26065]
[1742191562540,10.33482,1899.8,1899.7,3.2078]
[1742191562740,1.05293,1899.6,1899.5,40.80790014]
[1742191563041,4.26073,1899.6,1899.5,40.80790014]
[1742191563452,5.28257905,1899.6,1899.5,40.80790014]
[1742191563951,4.26073,1899.6,1899.5,40.80790014]
[1742191564947,3.2078,1899.6,1899.5,40.80790014]
[1742191565143,3.2078,1899.6,1899.5,41.86089014]
[1742191565544,3.2078,1899.6,1899.5,40.80790014]
[1742191565747,3.2078,1899.6,1899.5,41.86089014]
[1742191566052,6.6208,1899.6,1899.5,41.86089014]
[1742191566649,8.69504887,1899.6,1899.5,40.80790014]
[1742191570854,14.56504887,1899.6,1899.5,40.80790014]
[1742191572255,13.54373,1899.6,1899.5,40.80790014]
[1742191572454,14.56324938,1899.6,1899.5,40.80790014]
[1742191573353,10.13073,1899.6,1899.5,40.80790014]
[1742191573556,12.4898,1899.6,1899.5,40.80790014]
[1742191573958,12.4898,1899.6,1899.5,42.20990014]
[1742191574553,12.4898,1899.6,1899.5,43.26289014]
[1742191575959,13.54273,1899.6,1899.5,42.20990014]
[1742191576351,12.4898,1899.6,1899.5,42.20990014]
[1742191576753,6.6198,1899.6,1899.5,42.20990014]
[1742191577053,6.6198,1899.6,1899.5,43.26289014]
[1742191579551,6.6188,1899.6,1899.5,43.26289014]
[1742191580459,6.6188,1899.6,1899.5,42.20990014]
[1742191580650,6.6188,1899.6,1899.5,43.26289014]
[1742191581051,29.199,1899.7,1899.6,1.05293]
[1742191581259,32.608,1899.7,1899.6,1.374]
[1742191581560,32.608,1899.7,1899.6,2.42693]
[1742191581760,32.608,1899.7,1899.6,1.374]
[1742191581961,33.66088,1899.7,1899.6,1.374]
[1742191582261,32.608,1899.7,1899.6,1.374]
[1742191583262,33.94,1899.7,1899.6,1.374]
[1742191584062,33.94,1899.7,1899.6,2.42693]
[1742191584266,29.199,1899.7,1899.6,2.42693]
[1742191584763,32.606,1899.7,1899.6,2.42693]
[1742191585063,29.199,1899.7,1899.6,2.42693]
[1742191590672,3.406,1899.8,1899.7,1.05288]
[1742191590862,3.406,1899.8,1899.7,3.79068]
[1742191591054,4.45882,1899.8,1899.7,2.7378]
[1742191591367,1.05293,1899.6,1899.5,40.80790014]
[1742191591961,3.44615704,1899.6,1899.5,40.80790014]
[1742191592465,4.5181921,1899.6,1899.5,40.80790014]
[1742191594262,3.44615704,1899.6,1899.5,40.80790014]
[1742191598261,2.39322704,1899.6,1899.5,40.80790014]
[1742191598461,5.79322704,1899.6,1899.5,41.86089014]
[1742191598658,5.79322704,1899.6,1899.5,43.20569014]
[1742191599468,5.79422704,1899.6,1899.5,43.20569014]
[1742191600164,5.79422704,1899.6,1899.5,41.86089014]
[1742191600367,5.79422704,1899.6,1899.5,40.80790014]
[1742191600764,5.79422704,1899.6,1899.5,42.20350014]
[1742191603475,4.7723,1899.6,1899.5,42.20350014]
[1742191603669,5.82523,1899.6,1899.5,42.20350014]
[1742191603971,5.91410073,1899.6,1899.5,42.20350014]
[1742191604170,6.57890073,1899.6,1899.5,40.80790014]
[1742191604373,8.31962777,1899.6,1899.5,40.80790014]
[1742191604874,9.39225193,1899.6,1899.5,40.80790014]
[1742191607979,9.3033812,1899.6,1899.5,40.80790014]
[1742191608175,9.3922595,1899.6,1899.5,40.80790014]
[1742191609274,12.6000595,1899.6,1899.5,40.80790014]
[1742191609677,12.60006074,1899.6,1899.5,40.80790014]
[1742191611179,12.60007492,1899.6,1899.5,40.80790014]
[1742191612282,11.21647492,1899.6,1899.5,40.80790014]
[1742191612490,10.14385076,1899.6,1899.5,42.17610014]
[1742191612680,9.09092076,1899.6,1899.5,42.17610014]
[1742191613578,10.14385076,1899.6,1899.5,42.17610014]
[1742191613883,11.21654911,1899.6,1899.5,42.17610014]
[1742191614084,10.16361911,1899.6,1899.5,42.17610014]
[1742191614286,9.09092076,1899.6,1899.5,42.17610014]
[1742191614683,10.14385076,1899.6,1899.5,42.17610014]
[1742191615685,11.2167779,1899.6,1899.5,42.17610014]
[1742191618287,12.0036277,1899.6,1899.5,42.17610014]
[1742191618788,12.00362601,1899.6,1899.5,42.17610014]
[1742191618989,12.00362601,1899.6,1899.5,40.80790014]
[1742191619184,12.00362601,1899.6,1899.1,3.2078]
[1742191619185,13.45069601,1899.6,1899.2,1.3255]
[1742191619385,1.0531,1899.3,1899.2,1.3255]
[1742191619690,4.4411,1899.3,1899.2,42.1255]
[1742191619989,6.81172704,1899.3,1899.2,43.464]
[1742191620192,6.54591545,1899.3,1899.2,44.51715]
[1742191620388,5.75862704,1899.3,1899.2,44.51715]
[1742191620686,6.83155418,1899.3,1899.2,44.51715]
[1742191621090,6.83155418,1899.3,1899.2,43.464]
[1742191621392,7.88465418,1899.3,1899.2,43.464]
[1742191621592,6.81172704,1899.3,1899.2,43.464]
[1742191622591,5.75862704,1899.3,1899.2,44.51715]
[1742191622794,6.83299867,1899.3,1899.2,44.51715]
[1742191623593,5.48029867,1899.3,1899.2,44.51715]
[1742191624688,4.40592704,1899.3,1899.2,44.51715]
[1742191624993,4.40592704,1899.3,1899.2,43.464]
[1742191625195,5.83332704,1899.3,1899.2,43.464]
[1742191626191,6.90752734,1899.3,1899.2,43.464]
[1742191626397,7.96062734,1899.3,1899.2,43.464]
[1742191626690,6.88642704,1899.3,1899.2,43.464]
[1742191627082,5.83332704,1899.3,1899.2,43.464]
[1742191627897,6.88642704,1899.3,1899.2,43.464]
[1742191628597,5.83332704,1899.3,1899.2,43.464]
[1742191628799,6.88642704,1899.3,1899.2,43.464]
[1742191630501,6.9753211,1899.3,1899.2,43.464]
[1742191630803,8.0492324,1899.3,1899.2,43.464]
[1742191632391,8.0492324,1899.3,1899.2,40.8]
[1742191632599,8.8360581,1899.3,1899.2,40.8]
[1742191633194,8.8360581,1899.3,1899.2,42.1607]
[1742191633502,8.83605953,1899.3,1899.2,42.1607]
[1742191634801,7.02730679,1899.3,1899.2,43.5961]
[1742191635895,8.05090921,1899.3,1899.2,43.5961]
[1742191636101,1.05315,1899.2,1899.1,0.00790014]
[1742191636300,6.82904791,1899.2,1899.1,0.00790014]
[1742191636501,8.68948696,1899.2,1899.1,0.00790014]
[1742191637101,8.68948696,1899.2,1899.1,40.80790014]
[1742191637302,8.68948696,1899.2,1899.1,42.22020014]
[1742191637902,8.68948696,1899.2,1899.1,40.80790014]
[1742191641210,8.68899157,1899.2,1899.1,40.80790014]
[1742191641409,14.55899157,1899.2,1899.1,40.80790014]
[1742191642910,13.77295921,1899.2,1899.1,40.80790014]
[1742191643113,17.15295921,1899.2,1899.1,40.80790014]
[1742191643608,12.31735921,1899.2,1899.1,40.80790014]
[1742191643812,11.43540921,1899.2,1899.1,40.80790014]
[1742191644199,10.36149791,1899.2,1899.1,43.62420014]
[1742191644812,9.33889549,1899.2,1899.1,44.67741014]
[1742191645013,5.95889549,1899.2,1899.1,44.67741014]
[1742191645313,9.33989549,1899.2,1899.1,44.67741014]
[1742191647111,3.46989549,1899.2,1899.1,44.67741014]
[1742191647710,0.08889549,1899.2,1899.1,44.67741014]
[1742191647910,3.46889549,1899.2,1899.1,44.67741014]
[1742191648208,3.46889549,1899.2,1899.1,43.62420014]
[1742191648516,3.46889549,1899.2,1899.1,44.67741014]
[1742191649415,3.46889549,1899.2,1899.1,43.62420014]
[1742191650105,3.46889549,1899.2,1899.1,44.67741014]
[1742191660320,3.46889549,1899.2,1899.1,47.88521014]
[1742191660716,0.08889549,1899.2,1899.1,47.88521014]
[1742191662326,0.08889549,1899.2,1899.1,43.62420014]
[1742191662621,2.56414549,1899.2,1899.1,43.62420014]
[1742191663226,2.56414549,1899.2,1899.1,42.91380014]
[1742191663721,2.56414549,1899.2,1899.1,40.80790014]
[1742191663916,3.35041257,1899.2,1899.1,40.80790014]
[1742191664424,4.37382178,1899.2,1899.1,40.80790014]
[1742191667426,5.44701399,1899.2,1899.1,40.80790014]
[1742191668426,6.98659691,1899.2,1899.1,41.86111014]
[1742191668723,5.56449691,1899.2,1899.1,42.52871014]
[1742191668920,7.02259691,1899.2,1899.1,42.52871014]
[1742191670022,5.9494047,1899.2,1899.1,42.52871014]
[1742191670821,4.92599549,1899.2,1899.1,42.52871014]
[1742191672326,3.46789549,1899.2,1899.1,42.52871014]
[1742191672533,0.08889549,1899.2,1899.1,42.52871014]
[1742191672731,3.46789549,1899.2,1899.1,42.52871014]
[1742191673328,0.08889549,1899.2,1899.1,42.52871014]
[1742191674137,1.40859549,1899.2,1899.1,42.52871014]
[1742191674638,1.40859549,1899.2,1899.1,45.73651014]
[1742191674833,4.78759549,1899.2,1899.1,42.52871014]
[1742191675239,3.46789549,1899.2,1899.1,42.52871014]
[1742191677137,4.86819549,1899.2,1899.1,40.80790014]
[1742191677337,5.92134549,1899.2,1899.1,40.80790014]
[1742191677536,6.9447547,1899.2,1899.1,40.80790014]
[1742191677735,7.6400547,1899.2,1899.1,40.80790014]
[1742191677935,8.71370998,1899.2,1899.1,40.80790014]
[1742191678138,9.50037286,1899.2,1899.1,40.80790014]
[1742191679447,8.71370998,1899.2,1899.1,40.80790014]
[1742191681045,8.71370998,1899.2,1899.1,42.21720014]
[1742191681941,7.66055998,1899.2,1899.1,42.21720014]
[1742191682148,6.96525998,1899.2,1899.1,42.21720014]
[1742191682447,5.8916047,1899.2,1899.1,42.21720014]
[1742191683545,5.8916047,1899.2,1899.1,43.27041014]
[1742191687942,3.46789549,1899.2,1899.1,43.27041014]
[1742191688744,4.64110014,1899.4,1899.3,1.0531]
[1742191688941,9.04335391,1899.4,1899.3,1.0531]
[1742191689245,1.03115391,1899.4,1899.3,1.0531]
[1742191689449,3.38690014,1899.4,1899.3,3.1523]
[1742191689943,0.00790014,1899.4,1899.3,3.1523]
[1742191690945,32.584,1899.5,1899.4,1.05304]
[1742191691146,32.584,1899.5,1899.4,2.43644]
[1742191691950,29.205,1899.5,1899.4,2.43644]
[1742191693554,23.10789549,1899.5,1899.4,4.93644]
[1742191694062,3.379,1899.8,1899.4,6.51594]
[1742191694358,3.38,1899.9,1899.5,4.5506]
[1742191694547,3.38,1899.9,1899.8,1.05282]
[1742191695356,4.7422,1900.0,1899.9,1.05277]
[1742191695556,4.7422,1900.0,1899.9,41.85277]
[1742191696153,4.7422,1900.0,1899.9,40.8]
[1742191696456,4.7422,1900.0,1899.9,41.85277]
[1742191696757,4.7422,1900.0,1899.9,40.8]
[1742191697156,4.7422,1900.0,1899.9,42.1469]
[1742191697454,4.7422,1900.0,1899.9,43.19967]
[1742191699459,4.7422,1900.0,1899.9,42.1469]
[1742191700060,4.7422,1900.0,1899.9,43.19967]
[1742191700455,4.7422,1900.0,1899.9,42.1469]
[1742191700654,4.7422,1900.0,1899.9,40.8]
[1742191700854,6.1506,1900.0,1899.9,40.8]
[1742191701455,6.1506,1900.0,1899.9,41.85277]
[1742191701656,6.1506,1900.0,1899.9,42.1462]
[1742191703661,4.7422,1900.0,1899.9,43.19897]
[1742191704855,4.7422,1900.0,1899.9,42.1462]
[1742191705362,4.7422,1900.0,1899.9,43.19897]
[1742191706557,1.3632,1900.0,1899.9,43.19897]
[1742191706760,4.7412,1900.0,1899.9,43.19897]
[1742191707161,32.4158,1900.1,1900.0,1.05271]
[1742191707364,35.7928,1900.1,1900.0,3.83651]
[1742191715262,32.585,1900.1,1900.0,3.83651]
[1742191715463,1.3874,1900.2,1900.1,1.05266]
[1742191715666,1.3874,1900.2,1900.1,2.40656]
[1742191717560,1.3874,1900.2,1900.1,1.05266]
[1742191717763,1.3874,1900.2,1900.1,2.40656]
[1742191725374,1.3874,1900.2,1900.1,1.05266]
[1742191725969,1.3874,1900.2,1900.1,2.46576]
[1742191727177,2.44,1900.2,1900.1,1.4131]
[1742191727476,2.0518,1900.2,1900.0,1.76909]
[1742191727772,1.403,1900.1,1900.0,3.17619]
[1742191730776,2.45566,1900.1,1899.9,45.06055]
[1742191730977,3.377,1900.0,1899.9,43.17015]
[1742191731177,4.8239,1900.0,1899.9,42.1174]
[1742191732074,4.8239,1900.0,1899.9,43.17017]
[1742191732477,5.87661,1900.0,1899.9,42.1174]
[1742191732779,4.8239,1900.0,1899.9,43.17017]
[1742191736073,1.0214168,1900.1,1900.0,1.05271]
[1742191736288,5.7427168,1900.1,1900.0,3.12931]
[1742191738175,6.7953768,1900.1,1899.9,41.85276]
[1742191738384,2.11,1900.0,1899.9,41.85276]
[1742191738580,3.1314168,1900.0,1899.9,42.1933]
[1742191740177,2.4579168,1900.0,1899.9,43.24607]
[1742191740377,1.4365,1900.0,1899.9,43.24607]
[1742191741270,1.4365,1900.0,1899.9,42.1933]
[1742191741475,2.48921,1900.0,1899.9,40.8]
[1742191741779,4.1912268,1900.0,1899.9,40.8]
[1742191742483,3.1385168,1900.0,1899.9,42.1929]
[1742191743980,3.1385168,1900.0,1899.9,43.24567]